bitfinex-derivatives/quotes_SOLF0:USTF0_20250424
["timestamp","ask_amount","ask_price","bid_price","bid_amount"]
[1745517962190,501.82,151.3,151.23,14.12220859]
[1745517962889,6.6088,151.27,151.23,20.73240859]
[1745517963089,476.02,151.37,151.25,14.12220859]
[1745517963285,6.6067,151.32,151.28,6.6081]
[1745517963481,39.86220859,151.36,151.28,1.9848]
[1745517964189,39.86220859,151.36,151.29,62.0]
[1745517964590,6.6058,151.34,151.29,68.6073]
[1745517965090,14.12220859,151.36,151.29,62.0]
[1745517965287,6.6054,151.35,151.3,6.6072]
[1745517965784,14.12220859,151.36,151.28,1.9848]
[1745517965986,14.12220859,151.38,151.29,39.86220859]
[1745517967091,6.6043,151.37,151.29,39.86220859]
[1745517967493,6.6043,151.37,151.32,6.6061]
[1745517967693,6.6047,151.36,151.32,6.6061]
[1745517968390,6.6047,151.36,151.33,62.0]
[1745517969293,6.6053,151.35,151.33,62.0]
[1745517969597,14.12220859,151.38,151.33,62.0]
[1745517970094,14.12220859,151.34,151.26,4.0157]
[1745517970294,6.6066,151.32,151.26,4.0157]
[1745517970795,6.606,151.33,151.26,18.13790859]
[1745517970996,14.12220859,151.36,151.26,18.13790859]
[1745517971197,6.6067,151.32,151.26,80.13790859]
[1745517971495,14.12220859,151.36,151.26,80.13790859]
[1745517972197,39.86220859,151.38,151.28,14.12220859]
[1745517972397,14.12220859,151.38,151.29,25.74]
[1745517972596,6.605,151.36,151.31,6.6065]
[1745517972794,39.86220859,151.39,151.3,14.12220859]
[1745517973091,39.86220859,151.39,151.32,6.6061]
[1745517973290,39.86220859,151.39,151.3,16.09340859]
[1745517973995,6.6043,151.37,151.32,6.606]
[1745517974597,6.6039,151.38,151.33,6.6056]
[1745517974995,6.604,151.38,151.33,25.74]
[1745517975194,39.86220859,151.41,151.33,25.74]
[1745517975400,14.12220859,151.39,151.33,25.74]
[1745517975598,14.12220859,151.37,151.33,25.74]
[1745517976299,6.6051,151.35,151.33,25.74]
[1745517977101,14.12220859,151.37,151.33,25.74]
[1745517977501,14.12220859,151.39,151.33,25.74]
[1745517978002,39.86220859,151.41,151.33,25.74]
[1745517978595,6.6044,151.37,151.33,32.3457]
[1745517979001,39.86220859,151.41,151.33,25.74]
[1745517979300,6.6043,151.37,151.33,32.3458]
[1745517980198,6.6047,151.36,151.33,25.74]
[1745517982102,6.6043,151.37,151.33,32.3458]
[1745517982302,39.86220859,151.41,151.33,25.74]
[1745517982901,14.12220859,151.39,151.32,2.034]
[1745517983101,25.74,151.41,151.3,27.7112]
[1745517983400,6.6075,151.3,151.27,1.9308]
[1745517983606,14.12220859,151.35,151.27,27.6708]
[1745517984006,6.607,151.31,151.27,8.5391]
[1745517984306,14.12220859,151.35,151.28,25.74]
[1745517984906,14.12220859,151.35,151.27,1.9308]
[1745517985299,6.6068,151.32,151.27,8.5391]
[1745517985808,14.12220859,151.35,151.27,8.5391]
[1745517986006,14.12220859,151.35,151.27,1.9308]
[1745517986507,6.6073,151.3,151.27,1.9308]
[1745517986806,25.74,151.36,151.27,8.5393]
[1745517987007,14.12220859,151.34,151.27,1.9308]
[1745517987210,39.86220859,151.36,151.27,1.9308]
[1745517987403,39.86220859,151.36,151.29,6.6074]
[1745517987906,6.6062,151.33,151.29,6.6074]
[1745517988709,14.12220859,151.34,151.27,1.9308]
[1745517989509,6.6076,151.3,151.27,1.9308]
[1745517989708,14.12220859,151.34,151.27,1.9308]
[1745517990807,14.12220859,151.38,151.28,14.12220859]
[1745517991013,39.86220859,151.4,151.3,14.12220859]
[1745517991210,6.6049,151.36,151.32,6.6061]
[1745517991508,39.86220859,151.4,151.31,27.7743]
[1745517991709,6.6047,151.36,151.32,6.6062]
[1745517992010,39.86220859,151.4,151.32,6.6062]
[1745517992207,6.6054,151.35,151.31,27.7743]
[1745517992710,39.86220859,151.4,151.31,27.7743]
[1745517992905,6.6048,151.36,151.32,6.6061]
[1745517993208,39.86220859,151.4,151.31,27.7743]
[1745517993814,6.6035,151.39,151.32,14.12220859]
[1745517994009,39.86220859,151.4,151.32,14.12220859]
[1745517994504,6.6044,151.37,151.32,14.12220859]
[1745517994707,39.86220859,151.4,151.31,27.7743]
[1745517996115,6.6045,151.37,151.33,6.6058]
[1745517996515,39.86220859,151.4,151.32,14.12220859]
[1745517997316,6.6042,151.37,151.32,14.12220859]
[1745517997818,6.6042,151.37,151.33,6.6056]
[1745517999517,6.6047,151.36,151.33,6.6056]
[1745518000224,13.2021,151.45,151.35,14.12220859]
[1745518000416,14.12220859,151.44,151.37,14.12220859]
[1745518000614,14.12220859,151.44,151.36,25.7]
[1745518001013,14.12220859,151.44,151.37,6.6038]
[1745518001214,6.6025,151.41,151.37,6.6038]
[1745518001918,6.6025,151.41,151.38,6.6036]
[1745518002118,6.6022,151.42,151.38,6.6036]
[1745518002619,14.12220859,151.44,151.36,25.7]
[1745518003622,6.6026,151.41,151.37,6.604]
[1745518004216,6.6017,151.43,151.36,39.82220859]
[1745518004419,2.28337,151.47,151.38,14.12220859]
[1745518004622,2.28337,151.47,151.39,1.8757]
[1745518004823,6.601,151.45,151.41,6.6023]
[1745518005624,6.6012,151.44,151.4,32.3027]
[1745518005918,0.25057,151.47,151.4,32.3027]
[1745518006114,14.12220859,151.46,151.4,32.3027]
[1745518006418,14.12220859,151.44,151.37,25.7]
[1745518007017,14.12220859,151.4,151.33,3.8268]
[1745518007221,6.6049,151.36,151.34,6.55549193]
[1745518007518,14.12220859,151.4,151.33,29.5268]
[1745518007718,6.6028,151.41,151.37,6.6042]
[1745518007918,14.37277859,151.47,151.37,39.82220859]
[1745518008317,6.6015,151.44,151.37,39.82220859]
[1745518008518,14.37277859,151.47,151.37,39.82220859]
[1745518008826,6.6011,151.44,151.4,6.6028]
[1745518009124,6.6011,151.44,151.39,14.12220859]
[1745518009322,6.6018,151.43,151.39,20.72530859]
[1745518009525,14.37277859,151.47,151.38,1.9503]
[1745518009817,20.72570859,151.39,151.31,14.12220859]
[1745518010022,14.12220859,151.41,151.33,14.12220859]
[1745518010225,14.12220859,151.41,151.34,6.55527688]
[1745518010526,6.6031,151.4,151.35,6.6048]
[1745518010724,6.6031,151.4,151.34,25.7]
[1745518011023,6.6031,151.4,151.35,6.605]
[1745518011222,6.6031,151.4,151.34,25.7]
[1745518011418,6.6033,151.39,151.34,25.7]
[1745518011625,25.7,151.42,151.34,25.7]
[1745518012027,6.6036,151.39,151.34,25.7]
[1745518012428,25.7,151.42,151.34,25.7]
[1745518012933,25.7,151.42,151.35,14.12220859]
[1745518013130,14.12220859,151.43,151.35,14.12220859]
[1745518013427,6.6031,151.4,151.35,20.72720859]
[1745518013627,39.82220859,151.45,151.37,14.12220859]
[1745518013826,25.7,151.45,151.38,29.5704]
[1745518014532,14.12220859,151.47,151.38,29.5704]
[1745518014822,14.12220859,151.47,151.38,31.5424]
[1745518015525,6.6023,151.42,151.38,38.146]
[1745518016130,6.6024,151.41,151.38,38.146]
[1745518016427,14.12220859,151.45,151.38,31.5424]
[1745518016628,6.6027,151.41,151.38,29.5704]
[1745518018126,6.6027,151.41,151.38,36.1739]
[1745518018723,6.6018,151.43,151.4,6.6026]
[1745518019227,14.12220859,151.47,151.38,29.5704]
[1745518019420,6.6022,151.42,151.38,29.5704]
[1745518019620,53.02150859,151.48,151.39,14.12220859]
[1745518020432,14.12220859,151.46,151.38,29.5704]
[1745518020727,6.602,151.42,151.39,6.6033]
[1745518020928,14.12220859,151.46,151.38,29.5704]
[1745518021128,14.12220859,151.44,151.38,29.5704]
[1745518022134,14.12220859,151.44,151.38,36.1741]
[1745518022633,6.6022,151.42,151.38,36.1741]
[1745518023333,6.6025,151.41,151.38,36.1741]
[1745518023731,6.6013,151.44,151.38,29.5704]
[1745518023931,14.12220859,151.46,151.38,29.5704]
[1745518024434,14.12220859,151.46,151.4,6.6028]
[1745518024435,6.6015,151.44,151.4,6.6028]
[1745518024634,39.82220859,151.48,151.39,14.12220859]
[1745518024933,6.601,151.45,151.39,14.12220859]
[1745518025129,39.82220859,151.48,151.39,14.12220859]
[1745518025329,6.6014,151.44,151.4,6.6027]
[1745518025631,6.6014,151.44,151.39,14.12220859]
[1745518026132,6.6014,151.44,151.41,6.6022]
[1745518026333,6.6009,151.45,151.41,6.6022]
[1745518026832,6.6009,151.45,151.42,6.602]
[1745518027034,6.6011,151.44,151.39,14.12220859]
[1745518027734,6.6017,151.43,151.39,14.12220859]
[1745518027937,6.6017,151.43,151.4,6.6026]
[1745518028232,39.82220859,151.48,151.39,14.12220859]
[1745518028534,14.12220859,151.44,151.38,36.1739]
[1745518028933,6.6027,151.41,151.38,36.1739]
[1745518029135,25.7,151.48,151.38,29.5704]
[1745518029432,14.12220859,151.46,151.39,14.12220859]
[1745518029627,6.6009,151.45,151.42,6.602]
[1745518029829,39.82220859,151.48,151.39,14.12220859]
[1745518031033,6.6005,151.46,151.39,14.12220859]
[1745518031533,6.6005,151.46,151.43,6.6015]
[1745518032133,6.6007,151.45,151.42,6.6018]
[1745518032328,6.6007,151.45,151.39,14.12220859]
[1745518032525,39.82220859,151.48,151.39,14.12220859]
[1745518032831,39.82220859,151.48,151.42,6.6017]
[1745518033234,6.6004,151.46,151.43,6.6014]
[1745518033732,14.12220859,151.48,151.42,25.68]
[1745518034434,6.6009,151.45,151.42,25.68]
[1745518035335,14.12220859,151.48,151.42,25.68]
[1745518035934,6.601,151.45,151.42,25.68]
[1745518036135,14.12220859,151.46,151.39,25.68]
[1745518036332,14.12220859,151.44,151.39,25.68]
[1745518037135,6.6023,151.42,151.39,25.68]
[1745518038832,6.6023,151.42,151.39,32.2832]
[1745518039136,6.6023,151.42,151.39,25.68]
[1745518039337,14.12220859,151.46,151.39,25.68]
[1745518039637,16.16140859,151.46,151.39,25.68]
[1745518040038,16.16140859,151.46,151.39,32.2833]
[1745518041338,6.602,151.42,151.39,32.2833]
[1745518041535,16.16140859,151.46,151.39,32.2833]
[1745518041737,16.16140859,151.46,151.39,25.68]
[1745518041935,6.6013,151.44,151.39,25.68]
[1745518042235,16.16140859,151.46,151.39,25.68]
[1745518042436,6.6014,151.44,151.39,25.68]
[1745518042738,6.6014,151.44,151.4,6.6026]
[1745518042939,6.6014,151.44,151.39,25.68]
[1745518043237,6.6008,151.45,151.41,6.602]
[1745518044140,6.6008,151.45,151.42,6.6018]
[1745518044535,6.6011,151.44,151.39,39.80220859]
[1745518044731,6.6011,151.44,151.4,6.6024]
[1745518045440,6.6011,151.44,151.41,6.6023]
[1745518045640,6.6011,151.44,151.42,1.6509683]
[1745518045840,6.6009,151.45,151.42,1.6509683]
[1745518046040,25.68,151.47,151.42,1.6509683]
[1745518046243,6.6013,151.44,151.41,6.6023]
[1745518047442,6.6013,151.44,151.42,1.65085997]
[1745518048640,25.68,151.47,151.43,1.65085997]
[1745518048946,6.6014,151.44,151.4,6.6025]
[1745518049343,6.6014,151.44,151.41,6.6024]
[1745518049742,6.6014,151.44,151.42,1.65082426]
[1745518050338,6.6009,151.45,151.43,1.65082426]
[1745518050542,6.6009,151.45,151.42,6.6017]
[1745518050944,6.6012,151.44,151.41,6.6022]
[1745518051139,25.68,151.47,151.41,6.6022]
[1745518051444,8.99650012,151.46,151.41,15.59870012]
[1745518051742,6.6009,151.45,151.42,1.65082426]
[1745518052242,6.6009,151.45,151.43,1.65082426]
[1745518052742,6.6009,151.45,151.42,6.602]
[1745518052936,15.59690012,151.46,151.43,6.6015]
[1745518053134,8.99650012,151.46,151.41,8.99650012]
[1745518053344,6.6009,151.45,151.42,6.6018]
[1745518053534,6.6009,151.45,151.43,1.65080351]
[1745518053844,6.5994,151.48,151.45,6.6004]
[1745518054144,6.5994,151.48,151.45,8.99650012]
[1745518054345,6.5994,151.48,151.45,15.59710012]
[1745518054545,6.5998,151.47,151.44,10.89000012]
[1745518055446,6.5998,151.47,151.45,1.65052734]
[1745518055945,15.59610012,151.48,151.45,8.25122734]
[1745518056245,8.99650012,151.49,151.46,1.65052734]
[1745518056547,6.5999,151.47,151.46,1.65052734]
[1745518056748,8.99650012,151.47,151.42,25.64]
[1745518056948,8.99650012,151.45,151.43,6.5470315]
[1745518057142,8.99650012,151.45,151.42,25.64]
[1745518057343,8.99650012,151.47,151.42,34.63650012]
[1745518057543,8.99650012,151.47,151.43,6.54851781]
[1745518057844,8.99650012,151.47,151.42,34.63650012]
[1745518058145,15.59660012,151.47,151.43,13.14947473]
[1745518058446,6.6003,151.46,151.43,6.6014]
[1745518059449,15.59650012,151.47,151.44,6.601]
[1745518059947,15.59570012,151.49,151.45,15.59700012]
[1745518062649,6.625,151.55,151.47,8.99650012]
[1745518062846,27.98361,151.56,151.48,8.99650012]
[1745518063149,8.99650012,151.52,151.48,8.99650012]
[1745518063348,15.59430012,151.52,151.48,15.59560012]
[1745518063543,6.5978,151.52,151.48,15.59560012]
[1745518063847,6.597,151.54,151.5,8.99650012]
[1745518064049,15.59350012,151.54,151.5,8.99650012]
[1745518064748,6.5973,151.53,151.5,8.99650012]
[1745518064949,6.5973,151.53,151.49,8.99650012]
[1745518065350,6.5973,151.53,151.48,1.9228]
[1745518065546,6.5973,151.53,151.49,6.5989]
[1745518066046,6.92721,151.56,151.49,14.04164275]
[1745518066251,0.33111,151.56,151.5,6.51512683]
[1745518066550,6.5965,151.55,151.51,25.64]
[1745518067152,0.33111,151.56,151.51,25.64]
[1745518067352,6.597,151.54,151.51,25.64]
[1745518067650,0.33111,151.56,151.51,25.64]
[1745518067950,6.5966,151.55,151.51,25.64]
[1745518069255,0.33111,151.56,151.49,15.96694275]
[1745518069451,14.04164275,151.55,151.49,25.64]
[1745518069651,14.04164275,151.53,151.45,14.04164275]
[1745518069850,14.04164275,151.53,151.45,25.64]
[1745518070352,6.5993,151.49,151.46,1.65018161]
[1745518070651,14.04164275,151.53,151.46,1.65018161]
[1745518070853,6.5987,151.5,151.46,1.65018161]
[1745518071051,1.8849,151.54,151.46,1.65018161]
[1745518071256,1.8849,151.54,151.47,1.65018161]
[1745518071752,6.5992,151.49,151.47,1.65018161]
[1745518072353,6.5992,151.49,151.45,39.68164275]
[1745518072753,6.5994,151.48,151.45,39.68164275]
[1745518072958,14.04164275,151.53,151.46,1.65009023]
[1745518073152,6.5997,151.48,151.46,1.65009023]
[1745518073353,14.04164275,151.53,151.46,1.65009023]
[1745518073550,14.04164275,151.53,151.47,1.65009023]
[1745518073848,6.5994,151.48,151.47,1.65009023]
[1745518074052,14.04164275,151.53,151.45,25.64]
[1745518074258,14.04164275,151.51,151.45,25.64]
[1745518074754,6.6002,151.46,151.45,25.64]
[1745518074954,14.04164275,151.51,151.45,25.64]
[1745518076653,6.6,151.47,151.45,25.64]
[1745518076856,14.04164275,151.49,151.41,25.64]
[1745518077157,14.04164275,151.47,151.38,39.68164275]
[1745518077357,6.6022,151.42,151.38,39.68164275]
[1745518077656,6.6022,151.42,151.39,1.65068576]
[1745518077858,6.6017,151.43,151.39,8.25398576]
[1745518078158,39.68164275,151.47,151.39,8.25398576]
[1745518078356,6.6019,151.43,151.38,46.28504275]
[1745518078556,39.68164275,151.47,151.38,46.28504275]
[1745518078958,6.602,151.43,151.38,46.28504275]
[1745518079252,39.68164275,151.47,151.38,46.28504275]
[1745518079458,39.68164275,151.47,151.39,6.6032]
[1745518079660,360.0,151.66,151.45,14.04164275]
[1745518079859,14.04164275,151.58,151.47,14.04164275]
[1745518080159,14.37275275,151.56,151.47,14.04164275]
[1745518080567,6.5974,151.53,151.47,20.64134275]
[1745518080768,14.37275275,151.56,151.47,14.04164275]
[1745518081070,14.04164275,151.54,151.46,38.0433]
[1745518081268,39.68164275,151.54,151.46,38.0433]
[1745518081468,39.68164275,151.54,151.46,29.568]
[1745518081669,32.237,151.54,151.48,6.5993]
[1745518082061,25.64,151.54,151.47,14.04164275]
[1745518082266,6.5967,151.55,151.49,20.64024275]
[1745518082467,0.33111,151.56,151.49,20.64024275]
[1745518082666,14.37275275,151.56,151.48,8.24919074]
[1745518082867,14.37275275,151.56,151.46,29.568]
[1745518083371,14.37275275,151.56,151.47,1.64999331]
[1745518083672,14.37275275,151.56,151.48,1.64999331]
[1745518083969,6.5965,151.55,151.48,1.64999331]
[1745518084269,6.5965,151.55,151.49,1.64999331]
[1745518084470,6.5961,151.56,151.49,14.04164275]
[1745518084670,1.8821,151.57,151.49,14.04164275]
[1745518084970,1.8821,151.57,151.5,32.2183]
[1745518085173,6.5966,151.55,151.5,32.2183]
[1745518086971,1.8821,151.57,151.5,32.2183]
[1745518086972,6.5968,151.54,151.5,32.2183]
[1745518087371,6.5976,151.52,151.5,25.62]
[1745518087870,14.04164275,151.56,151.5,25.62]
[1745518088071,6.5979,151.52,151.5,25.62]
[1745518088270,6.5979,151.52,151.47,39.66164275]
[1745518088471,6.5984,151.51,151.47,39.66164275]
[1745518088875,14.04164275,151.56,151.46,3.928]
[1745518088876,39.66164275,151.54,151.46,10.528]
[1745518089575,39.66164275,151.54,151.46,6.6]
[1745518090277,6.5985,151.5,151.46,6.6]
[1745518090677,39.66164275,151.54,151.47,6.5997]
[1745518090878,6.5977,151.52,151.47,6.5997]
[1745518091079,6.5977,151.52,151.47,14.04164275]
[1745518091481,6.5974,151.53,151.47,14.04164275]
[1745518091779,25.62,151.54,151.47,14.04164275]
[1745518091979,6.5987,151.5,151.45,39.66164275]
[1745518092182,25.62,151.54,151.45,39.66164275]
[1745518092381,39.66164275,151.54,151.45,39.66164275]
[1745518092881,39.66164275,151.54,151.45,46.26204275]
[1745518093380,6.5992,151.49,151.45,46.26204275]
[1745518093675,39.66164275,151.54,151.45,39.66164275]
[1745518093880,6.5999,151.47,151.45,25.62]
[1745518094679,14.04164275,151.5,151.41,16.04294275]
[1745518094977,14.04164275,151.46,151.37,15.98454275]
[1745518095182,6.6025,151.41,151.38,1.65081361]
[1745518095382,25.62,151.45,151.38,1.65081361]
[1745518095577,25.62,151.45,151.37,15.98454275]
[1745518095780,6.6016,151.43,151.38,6.6034]
[1745518096183,25.62,151.45,151.38,6.6034]
[1745518096384,25.62,151.45,151.37,22.58844275]
[1745518096583,25.62,151.45,151.38,1.65081807]
[1745518096886,6.6031,151.4,151.38,1.65081807]
[1745518097083,14.04164275,151.44,151.38,1.65081807]
[1745518097286,25.62,151.45,151.38,1.65081807]
[1745518097486,25.62,151.45,151.39,1.65081807]
[1745518097987,6.6016,151.43,151.38,6.6035]
[1745518098385,25.62,151.45,151.39,14.04164275]
[1745518098688,25.62,151.45,151.37,41.60454275]
[1745518099188,6.6025,151.41,151.38,1.6509094]
[1745518099389,14.04164275,151.44,151.38,1.6509094]
[1745518099580,6.6027,151.41,151.38,1.6509094]
[1745518099784,6.6027,151.41,151.36,6.6043]
[1745518100180,14.04164275,151.44,151.35,14.04164275]
[1745518100390,25.62,151.45,151.37,14.04164275]
[1745518100586,25.62,151.45,151.38,1.9651]
[1745518100791,6.6013,151.44,151.39,6.603]
[1745518101790,6.6013,151.44,151.4,1.65076297]
[1745518101991,6.6013,151.44,151.4,8.25356297]
[1745518102488,6.6013,151.44,151.4,6.6028]
[1745518102991,6.6016,151.43,151.39,6.6031]
[1745518103492,6.6023,151.42,151.38,8.5687]
[1745518103693,14.04164275,151.44,151.38,1.9651]
[1745518104094,14.04164275,151.44,151.39,6.6033]
[1745518104292,25.62,151.45,151.38,1.9651]
[1745518104588,6.6018,151.43,151.39,6.6031]
[1745518104795,25.62,151.45,151.38,27.5851]
[1745518105193,25.62,151.45,151.39,1.65083683]
[1745518105690,25.62,151.45,151.38,27.5851]
[1745518106394,6.6016,151.43,151.39,6.6031]
[1745518106592,25.62,151.45,151.38,27.5851]
[1745518106792,25.62,151.45,151.39,1.65083868]
[1745518107197,25.62,151.45,151.38,34.1884]
[1745518107397,25.62,151.45,151.38,27.5851]
[1745518107598,6.6019,151.43,151.39,6.6032]
[1745518108599,25.62,151.45,151.4,6.6028]
[1745518109001,6.6013,151.44,151.4,6.6028]
[1745518109701,6.6016,151.43,151.4,6.6028]
[1745518110097,25.62,151.45,151.38,27.5851]
[1745518110297,14.04164275,151.44,151.38,27.5851]
[1745518110501,14.04164275,151.42,151.34,29.582]
[1745518110801,14.04164275,151.44,151.36,14.04164275]
[1745518111003,6.6022,151.42,151.36,14.04164275]
[1745518111500,6.6025,151.41,151.38,8.99994379]
[1745518111704,8.99994379,151.43,151.38,8.99994379]
[1745518112000,6.6022,151.42,151.38,15.60324379]
[1745518112599,6.6025,151.41,151.38,15.60324379]
[1745518112899,8.99994379,151.43,151.38,15.60324379]
[1745518113095,6.6026,151.41,151.38,8.99994379]
[1745518113899,8.99994379,151.43,151.39,8.99994379]
[1745518114200,8.99994379,151.43,151.4,8.25343764]
[1745518114401,6.6018,151.43,151.4,17.25338143]
[1745518114695,34.61994379,151.45,151.41,8.99994379]
[1745518115200,6.6012,151.44,151.41,8.99994379]
[1745518116100,41.22084379,151.45,151.41,15.60214379]
[1745518116301,25.62,151.45,151.41,15.60214379]
[1745518116995,6.6013,151.44,151.41,15.60214379]
[1745518117198,36.48854379,151.48,151.43,8.99994379]
[1745518117901,8.99994379,151.47,151.42,8.99994379]
[1745518118100,8.99994379,151.46,151.42,8.99994379]
[1745518118297,6.601,151.45,151.42,8.99994379]
[1745518118602,8.99994379,151.47,151.42,8.99994379]
[1745518118900,6.6003,151.46,151.42,15.60194379]
[1745518119902,6.6007,151.45,151.42,8.99994379]
[1745518120700,8.99994379,151.46,151.42,8.99994379]
[1745518120903,8.99994379,151.45,151.41,8.99994379]
[1745518122202,6.6009,151.45,151.41,15.60214379]
[1745518122403,6.6009,151.45,151.42,1.65060657]
[1745518122998,6.6009,151.45,151.41,15.60214379]
[1745518123203,6.6009,151.45,151.42,15.60184379]
[1745518123602,6.6004,151.46,151.42,15.60184379]
[1745518123803,8.99994379,151.47,151.42,15.60184379]
[1745518124003,8.99994379,151.47,151.43,1.65047819]
[1745518124199,6.6007,151.45,151.43,1.65047819]
[1745518124400,6.6007,151.45,151.42,15.60184379]
[1745518124706,6.6007,151.45,151.42,8.99994379]
[1745518125408,6.6011,151.44,151.43,1.65050241]
[1745518126106,6.6019,151.43,151.4,8.99994379]
[1745518126505,8.99994379,151.45,151.4,8.99994379]
[1745518126709,6.602,151.42,151.41,1.65050507]
[1745518127006,8.99994379,151.45,151.41,10.65044886]
[1745518127309,6.6014,151.44,151.41,10.65044886]
[1745518127612,6.6014,151.44,151.42,1.65050507]
[1745518127908,6.6014,151.44,151.42,10.65044886]
[1745518128104,6.6008,151.45,151.42,17.25234886]
[1745518128309,8.99994379,151.47,151.43,1.65050507]
[1745518128610,8.99994379,151.47,151.42,15.60184379]
[1745518129612,8.99994379,151.47,151.43,1.65047616]
[1745518130411,6.6009,151.45,151.44,1.65047616]
[1745518132111,15.60084379,151.45,151.44,1.65047616]
[1745518132912,15.60084379,151.45,151.4,15.60264379]
[1745518133208,15.60084379,151.45,151.41,13.14517955]
[1745518133412,6.6011,151.44,151.41,1.65065584]
[1745518133712,6.6011,151.44,151.42,1.65065584]
[1745518134509,6.6011,151.44,151.43,1.65065584]
[1745518135812,25.6,151.48,151.43,10.65059963]
[1745518136012,34.59994379,151.48,151.44,8.99994379]
[1745518136412,6.6007,151.45,151.43,10.65059963]
[1745518136613,34.59994379,151.48,151.43,8.99994379]
[1745518136813,34.59994379,151.48,151.44,1.65047091]
[1745518137214,34.59994379,151.48,151.45,1.65047091]
[1745518137815,6.6002,151.46,151.45,1.65047091]
[1745518140913,6.5998,151.47,151.45,1.65047091]
[1745518141113,25.6,151.48,151.45,1.65047091]
[1745518141515,32.1998,151.48,151.45,10.6504147]
[1745518141710,25.6,151.48,151.46,1.65047091]
[1745518142217,8.99994379,151.52,151.47,8.99994379]
[1745518142815,0.29451,151.53,151.5,8.99994379]
[1745518143016,0.29451,151.53,151.51,8.99994379]
[1745518145818,8.99994379,151.58,151.52,8.99994379]
[1745518146119,8.99994379,151.58,151.54,8.99994379]
[1745518146419,6.5958,151.57,151.54,8.99994379]
[1745518147217,15.59514379,151.58,151.54,8.99994379]
[1745518147414,8.99994379,151.58,151.54,8.99994379]
[1745518148120,6.5957,151.57,151.54,8.99994379]
[1745518149620,6.5959,151.56,151.54,8.99994379]
[1745518150515,6.5956,151.57,151.55,8.99994379]
[1745518151017,6.5959,151.56,151.55,8.99994379]
[1745518153119,6.5956,151.57,151.55,8.99994379]
[1745518153325,6.5956,151.57,151.56,8.99994379]
[1745518155125,6.5951,151.58,151.56,8.99994379]
[1745518155327,6.5951,151.58,151.57,8.99994379]
[1745518155523,6.5947,151.59,151.57,8.99994379]
[1745518155824,6.5947,151.59,151.58,8.99994379]
[1745518156419,27.5148,151.63,151.58,8.99994379]
[1745518156617,8.99994379,151.62,151.58,8.99994379]
[1745518156928,6.5944,151.6,151.58,8.99994379]
[1745518158827,6.5939,151.61,151.58,8.99994379]
[1745518159533,6.5943,151.6,151.58,8.99994379]
[1745518159937,8.99994379,151.61,151.58,8.99994379]
[1745518160228,8.99994379,151.6,151.55,25.56]
[1745518160437,8.99994379,151.57,151.51,25.54]
[1745518160630,8.99994379,151.57,151.53,15.59704379]
[1745518161033,6.5957,151.57,151.54,8.99994379]
[1745518161233,8.99994379,151.61,151.56,8.99994379]
[1745518161433,25.56,151.63,151.58,8.99994379]
[1745518161631,6.5939,151.61,151.58,8.99994379]
[1745518162627,6.5943,151.6,151.58,8.99994379]
[1745518162832,8.99994379,151.61,151.57,8.99994379]
[1745518163130,8.99994379,151.59,151.55,34.53994379]
[1745518163333,8.99994379,151.59,151.55,25.54]
[1745518163834,6.5957,151.57,151.55,25.54]
[1745518164131,6.5957,151.57,151.55,34.53994379]
[1745518164523,6.5959,151.56,151.55,34.53994379]
[1745518164724,6.5959,151.56,151.55,25.54]
[1745518165332,41.13994379,151.56,151.4,355.0]
[1745518165535,8.99994379,151.47,151.42,8.99994379]
[1745518165933,6.6013,151.44,151.41,16.50098699]
[1745518166130,6.6013,151.44,151.42,1.6499432]
[1745518166331,8.99994379,151.46,151.42,1.6499432]
[1745518166833,8.99994379,151.46,151.41,14.85104379]
[1745518167036,8.99994379,151.46,151.42,8.99994379]
[1745518167236,8.99994379,151.48,151.44,8.99994379]
[1745518167431,8.99994379,151.49,151.44,8.99994379]
[1745518167631,6.6013,151.44,151.43,8.99994379]
[1745518168237,8.99994379,151.47,151.41,5.8511]
[1745518168437,8.99994379,151.44,151.39,8.99994379]
[1745518168736,8.99994379,151.42,151.37,34.53994379]
[1745518168937,8.99994379,151.41,151.37,8.99994379]